[Event "Late-Titled-Tuesday-Blitz-October-03-2023"]
[Site "Chess.com"]
[Date "2023.10.03"]
[Round "5"]
[White "Bauman_Guy"]
[Black "Hilary46"]
[Result "1-0"]
[WhiteElo "2870"]
[BlackElo "2634"]
[TimeControl "180+1"]
[EndTime "14:54:36 PDT"]
[Termination "Bauman_Guy won by resignation"]

1. e4 {[%clk 0:03:00.9]} 1... e5 {[%clk 0:03:00.1]} 2. Nf3 {[%clk 0:03:01.2]}
2... Nc6 {[%clk 0:03:00.7]} 3. Bb5 {[%clk 0:03:01.9]} 3... a6 {[%clk 0:03:00.8]}
4. Ba4 {[%clk 0:03:02.4]} 4... Nf6 {[%clk 0:03:01.4]} 5. O-O {[%clk 0:03:02.8]}
5... Nxe4 {[%clk 0:03:02]} 6. d4 {[%clk 0:03:02.9]} 6... b5 {[%clk 0:03:02.7]}
7. Bb3 {[%clk 0:03:03.4]} 7... d5 {[%clk 0:03:03.3]} 8. dxe5 {[%clk 0:03:04.1]}
8... Be6 {[%clk 0:03:03.8]} 9. c3 {[%clk 0:03:04.8]} 9... Bc5 {[%clk 0:03:04]}
10. Nbd2 {[%clk 0:03:05.1]} 10... O-O {[%clk 0:03:04.5]} 11. Bc2 {[%clk
0:03:05.1]} 11... Nxf2 {[%clk 0:03:05.1]} 12. Rxf2 {[%clk 0:03:05.3]} 12... f6
{[%clk 0:03:05.7]} 13. Nf1 {[%clk 0:03:03.5]} 13... Bxf2+ {[%clk 0:03:05.8]} 14.
Kxf2 {[%clk 0:03:04.4]} 14... fxe5 {[%clk 0:03:06.3]} 15. Kg1 {[%clk 0:03:04.8]}
15... Qd6 {[%clk 0:03:06.4]} 16. Ng5 {[%clk 0:02:49.8]} 16... Bf5 {[%clk
0:03:03.5]} 17. Bb3 {[%clk 0:02:49.6]} 17... Rad8 {[%clk 0:03:00.4]} 18. Ne3
{[%clk 0:02:48]} 18... Ne7 {[%clk 0:02:22.8]} 19. Nxf5 {[%clk 0:02:27.9]} 19...
Nxf5 {[%clk 0:02:20.3]} 20. Qe2 {[%clk 0:02:21.4]} 20... h6 {[%clk 0:01:49.3]}
21. Nf3 {[%clk 0:02:20.8]} 21... Rde8 {[%clk 0:01:48.9]} 22. Be3 {[%clk
0:02:13.1]} 22... Nxe3 {[%clk 0:01:38]} 23. Qxe3 {[%clk 0:02:14]} 23... e4
{[%clk 0:01:33.6]} 24. Nd2 {[%clk 0:02:06.6]} 24... c6 {[%clk 0:01:23.5]} 25.
Rf1 {[%clk 0:01:55.7]} 25... Rxf1+ {[%clk 0:01:22.3]} 26. Nxf1 {[%clk
0:01:55.9]} 26... Kh8 {[%clk 0:01:19.7]} 27. Ng3 {[%clk 0:01:49.4]} 27... Rf8
{[%clk 0:01:19.8]} 28. Bd1 {[%clk 0:01:39.2]} 28... c5 {[%clk 0:01:12.7]} 29.
Bc2 {[%clk 0:01:31.3]} 29... Qf4 {[%clk 0:01:00.7]} 30. Qxf4 {[%clk 0:01:20.1]}
30... Rxf4 {[%clk 0:01:01.6]} 31. Bb3 {[%clk 0:01:20.6]} 31... c4 {[%clk
0:00:42]} 32. Bd1 {[%clk 0:01:16.1]} 32... Kg8 {[%clk 0:00:27.5]} 33. Ne2 {[%clk
0:01:15.2]} 33... Rf6 {[%clk 0:00:27.5]} 34. Nd4 {[%clk 0:01:13.2]} 34... Kf7
{[%clk 0:00:27.7]} 35. Bg4 {[%clk 0:01:10.7]} 35... Ke7 {[%clk 0:00:27.7]} 36.
h4 {[%clk 0:01:07.2]} 36... Kd6 {[%clk 0:00:19.6]} 37. a3 {[%clk 0:00:58.2]}
37... Ke5 {[%clk 0:00:19.2]} 38. g3 {[%clk 0:00:55.1]} 38... g6 {[%clk
0:00:16.8]} 39. Kg2 {[%clk 0:00:52.5]} 39... h5 {[%clk 0:00:16.6]} 40. Be2
{[%clk 0:00:50.7]} 40... Rb6 {[%clk 0:00:14.9]} 41. Kf2 {[%clk 0:00:48.8]} 41...
a5 {[%clk 0:00:15.3]} 42. Ke3 {[%clk 0:00:48.8]} 42... Kd6 {[%clk 0:00:09.8]}
43. Nc2 {[%clk 0:00:40.3]} 43... Kc5 {[%clk 0:00:08.5]} 44. Kd2 {[%clk
0:00:32.1]} 44... Rf6 {[%clk 0:00:07]} 45. Ke3 {[%clk 0:00:31]} 45... Rf7 {[%clk
0:00:06.6]} 46. Nd4 {[%clk 0:00:29.7]} 46... b4 {[%clk 0:00:04.8]} 47. axb4+
{[%clk 0:00:29.9]} 47... axb4 {[%clk 0:00:05.7]} 48. Ne6+ {[%clk 0:00:30.7]}
48... Kd6 {[%clk 0:00:06.1]} 49. Nf4 {[%clk 0:00:30.1]} 49... bxc3 {[%clk
0:00:06.5]} 50. bxc3 {[%clk 0:00:31]} 50... Rf6 {[%clk 0:00:06]} 51. Kd4 {[%clk
0:00:31.4]} 51... Rf5 {[%clk 0:00:05]} 52. Bd1 {[%clk 0:00:29.1]} 52... g5
{[%clk 0:00:04.1]} 53. Nxh5 {[%clk 0:00:18.1]} 53... gxh4 {[%clk 0:00:03.7]} 54.
gxh4 {[%clk 0:00:19]} 54... Rf1 {[%clk 0:00:03.8]} 55. Be2 {[%clk 0:00:18.2]}
55... Rh1 {[%clk 0:00:02.7]} 56. Ng3 {[%clk 0:00:17.5]} 56... Rxh4 {[%clk
0:00:02.9]} 57. Nf5+ {[%clk 0:00:17.7]} 57... Ke6 {[%clk 0:00:02.3]} 58. Nxh4
{[%clk 0:00:18.6]} 58... Kd6 {[%clk 0:00:02]} 59. Ng2 {[%clk 0:00:19]} 1-0

[Event "Late-Titled-Tuesday-Blitz-October-03-2023"]
[Site "Chess.com"]
[Date "2023.10.03"]
[Round "5"]
[White "sergoy"]
[Black "Zhigalko_Sergei"]
[Result "0-1"]
[WhiteElo "3004"]
[BlackElo "2956"]
[TimeControl "180+1"]
[EndTime "14:54:38 PDT"]
[Termination "Zhigalko_Sergei won by resignation"]

1. d4 {[%clk 0:03:00.1]} 1... Nf6 {[%clk 0:03:00.2]} 2. c4 {[%clk 0:03:00.3]}
2... e6 {[%clk 0:03:00.8]} 3. Nc3 {[%clk 0:03:00.7]} 3... Bb4 {[%clk 0:03:00.7]}
4. a3 {[%clk 0:02:56.7]} 4... Bxc3+ {[%clk 0:03:00.6]} 5. bxc3 {[%clk
0:02:57.6]} 5... O-O {[%clk 0:02:59.5]} 6. e3 {[%clk 0:02:57.3]} 6... d6 {[%clk
0:02:57.3]} 7. Bd3 {[%clk 0:02:57.8]} 7... e5 {[%clk 0:02:57.7]} 8. Ne2 {[%clk
0:02:56.1]} 8... Re8 {[%clk 0:02:54.8]} 9. Ng3 {[%clk 0:02:53.9]} 9... e4 {[%clk
0:02:44.9]} 10. Be2 {[%clk 0:02:50.1]} 10... c5 {[%clk 0:02:28.7]} 11. O-O
{[%clk 0:02:47.2]} 11... Nc6 {[%clk 0:02:28.8]} 12. f3 {[%clk 0:02:47.1]} 12...
exf3 {[%clk 0:01:55.1]} 13. gxf3 {[%clk 0:02:48]} 13... d5 {[%clk 0:01:33.5]}
14. Rb1 {[%clk 0:02:36.2]} 14... dxc4 {[%clk 0:01:13.4]} 15. Bxc4 {[%clk
0:02:32]} 15... b6 {[%clk 0:01:06.7]} 16. Bb5 {[%clk 0:02:22.6]} 16... Bd7
{[%clk 0:01:02.7]} 17. e4 {[%clk 0:02:15.3]} 17... cxd4 {[%clk 0:00:56.6]} 18.
cxd4 {[%clk 0:02:15.5]} 18... Na5 {[%clk 0:00:44.7]} 19. Be2 {[%clk 0:02:00.2]}
19... Rc8 {[%clk 0:00:39.5]} 20. d5 {[%clk 0:01:57.7]} 20... Qe7 {[%clk
0:00:33.1]} 21. Qd4 {[%clk 0:01:48.3]} 21... Bh3 {[%clk 0:00:23.4]} 22. Re1
{[%clk 0:01:38.7]} 22... Nd7 {[%clk 0:00:23.6]} 23. Bb2 {[%clk 0:01:27.2]} 23...
f6 {[%clk 0:00:23.7]} 24. f4 {[%clk 0:01:22.4]} 24... Nb3 {[%clk 0:00:18.9]} 25.
Qb4 {[%clk 0:01:17.7]} 25... Qxb4 {[%clk 0:00:11.9]} 26. axb4 {[%clk 0:01:17.5]}
26... Nd2 {[%clk 0:00:12.8]} 27. Bd1 {[%clk 0:00:32.4]} 27... Nxb1 {[%clk
0:00:11.9]} 28. e5 {[%clk 0:00:25]} 28... fxe5 {[%clk 0:00:11.4]} 29. fxe5
{[%clk 0:00:25.9]} 29... Nd2 {[%clk 0:00:08.9]} 30. Nh5 {[%clk 0:00:17.9]} 30...
g6 {[%clk 0:00:06.4]} 31. Nf4 {[%clk 0:00:17.5]} 31... Bf5 {[%clk 0:00:06.4]}
32. e6 {[%clk 0:00:16.6]} 32... Nc4 {[%clk 0:00:04.8]} 33. Bd4 {[%clk
0:00:14.4]} 33... Nf8 {[%clk 0:00:04.7]} 34. h4 {[%clk 0:00:14.4]} 34... Rcd8
{[%clk 0:00:04.9]} 35. h5 {[%clk 0:00:14.2]} 35... Nxe6 {[%clk 0:00:05.2]} 36.
Nxe6 {[%clk 0:00:08.4]} 36... Bxe6 {[%clk 0:00:05.5]} 37. Bf6 {[%clk 0:00:05.8]}
37... Rxd5 {[%clk 0:00:05.3]} 38. Bb3 {[%clk 0:00:05.2]} 38... b5 {[%clk
0:00:05.2]} 39. h6 {[%clk 0:00:05]} 39... Rf5 {[%clk 0:00:05.3]} 40. Bg7 {[%clk
0:00:05.4]} 40... Kf7 {[%clk 0:00:05.5]} 41. Rd1 {[%clk 0:00:05.6]} 41... Rd5
{[%clk 0:00:05.3]} 42. Rf1+ {[%clk 0:00:05.8]} 42... Bf5 {[%clk 0:00:05.9]} 43.
Ra1 {[%clk 0:00:06.3]} 43... Re7 {[%clk 0:00:05.7]} 44. Ra6 {[%clk 0:00:06.1]}
44... Red7 {[%clk 0:00:05.3]} 45. Rf6+ {[%clk 0:00:06.2]} 45... Ke7 {[%clk
0:00:06]} 46. Ra6 {[%clk 0:00:06.5]} 46... R5d6 {[%clk 0:00:05.2]} 47. Ra1
{[%clk 0:00:03.5]} 47... Kf7 {[%clk 0:00:05.6]} 48. Re1 {[%clk 0:00:03.8]} 48...
a6 {[%clk 0:00:05.7]} 49. Ra1 {[%clk 0:00:04.3]} 49... g5 {[%clk 0:00:05.7]} 50.
Rf1 {[%clk 0:00:04]} 50... Kg6 {[%clk 0:00:05.9]} 51. Re1 {[%clk 0:00:04]} 51...
Re6 {[%clk 0:00:05.5]} 52. Rf1 {[%clk 0:00:04.2]} 52... Rde7 {[%clk 0:00:05.6]}
53. Kf2 {[%clk 0:00:01.7]} 53... Re2+ {[%clk 0:00:05.7]} 54. Kg1 {[%clk
0:00:02.4]} 54... Re1 {[%clk 0:00:05.8]} 0-1

[Event "Late-Titled-Tuesday-Blitz-October-03-2023"]
[Site "Chess.com"]
[Date "2023.10.03"]
[Round "5"]
[White "biostatistician"]
[Black "MikaelyanArman"]
[Result "1-0"]
[WhiteElo "2640"]
[BlackElo "2844"]
[TimeControl "180+1"]
[EndTime "14:54:40 PDT"]
[Termination "biostatistician won by resignation"]

1. d4 {[%clk 0:02:59.7]} 1... d5 {[%clk 0:02:57.4]} 2. Nf3 {[%clk 0:03:00.6]}
2... Nf6 {[%clk 0:02:56.7]} 3. c4 {[%clk 0:03:01.5]} 3... e6 {[%clk 0:02:57.1]}
4. Nc3 {[%clk 0:03:01.8]} 4... c6 {[%clk 0:02:56]} 5. Bg5 {[%clk 0:03:01.9]}
5... h6 {[%clk 0:02:56.2]} 6. Bxf6 {[%clk 0:03:01.7]} 6... Qxf6 {[%clk
0:02:57.1]} 7. e3 {[%clk 0:03:02.4]} 7... Nd7 {[%clk 0:02:57]} 8. Bd3 {[%clk
0:03:02.9]} 8... Bd6 {[%clk 0:02:56.5]} 9. O-O {[%clk 0:03:02.9]} 9... dxc4
{[%clk 0:02:56]} 10. Ne4 {[%clk 0:02:59.5]} 10... Qe7 {[%clk 0:02:55.6]} 11.
Bxc4 {[%clk 0:02:58.2]} 11... O-O {[%clk 0:02:55.4]} 12. Nxd6 {[%clk 0:02:57.4]}
12... Qxd6 {[%clk 0:02:56.3]} 13. Qe2 {[%clk 0:02:54]} 13... b6 {[%clk
0:02:54.5]} 14. Rfd1 {[%clk 0:02:32.4]} 14... a5 {[%clk 0:02:51.6]} 15. Rac1
{[%clk 0:02:29.1]} 15... Bb7 {[%clk 0:02:51.3]} 16. e4 {[%clk 0:02:22.1]} 16...
Qe7 {[%clk 0:02:47.4]} 17. e5 {[%clk 0:02:15]} 17... Rfd8 {[%clk 0:02:11.9]} 18.
a4 {[%clk 0:02:00.7]} 18... c5 {[%clk 0:02:08]} 19. d5 {[%clk 0:02:00.3]} 19...
exd5 {[%clk 0:02:08.6]} 20. Bxd5 {[%clk 0:02:00.6]} 20... Bxd5 {[%clk
0:02:09.2]} 21. Rxd5 {[%clk 0:02:01.2]} 21... Nf8 {[%clk 0:02:09.9]} 22. Rcd1
{[%clk 0:01:59.3]} 22... Ne6 {[%clk 0:01:58.6]} 23. Qe4 {[%clk 0:01:42.3]} 23...
Rxd5 {[%clk 0:01:47.6]} 24. Rxd5 {[%clk 0:01:43.2]} 24... Rd8 {[%clk 0:01:43.9]}
25. b3 {[%clk 0:01:35]} 25... Rxd5 {[%clk 0:01:36.4]} 26. Qxd5 {[%clk
0:01:35.9]} 26... g5 {[%clk 0:01:37]} 27. Nd2 {[%clk 0:01:28.4]} 27... Nf4
{[%clk 0:01:24.4]} 28. Qd6 {[%clk 0:01:15.3]} 28... Qxd6 {[%clk 0:00:51.9]} 29.
exd6 {[%clk 0:01:16.2]} 29... Kf8 {[%clk 0:00:52.6]} 30. Nc4 {[%clk 0:01:16.3]}
30... Nd5 {[%clk 0:00:52.5]} 31. g3 {[%clk 0:01:03.8]} 31... Ke8 {[%clk
0:00:49.6]} 32. Kg2 {[%clk 0:01:04.2]} 32... f5 {[%clk 0:00:34.4]} 33. Kf3
{[%clk 0:00:58.4]} 33... Kd7 {[%clk 0:00:32.6]} 34. Ne5+ {[%clk 0:00:58.7]}
34... Kxd6 {[%clk 0:00:31.6]} 35. Nf7+ {[%clk 0:00:59.2]} 35... Ke6 {[%clk
0:00:30.2]} 36. Nxh6 {[%clk 0:01:00.1]} 36... Ne7 {[%clk 0:00:20.3]} 37. h4
{[%clk 0:00:53.5]} 37... Kf6 {[%clk 0:00:19.3]} 38. hxg5+ {[%clk 0:00:51.1]}
38... Kxg5 {[%clk 0:00:20.2]} 39. Nf7+ {[%clk 0:00:51.4]} 39... Kf6 {[%clk
0:00:20.9]} 40. Nd6 {[%clk 0:00:51]} 40... Nc6 {[%clk 0:00:20.3]} 41. Nc4 {[%clk
0:00:44.5]} 41... Nd4+ {[%clk 0:00:20.7]} 42. Ke3 {[%clk 0:00:42.4]} 42... Nxb3
{[%clk 0:00:20.7]} 43. Nxb6 {[%clk 0:00:42.9]} 43... Ke5 {[%clk 0:00:17.5]} 44.
Kd3 {[%clk 0:00:39.9]} 44... Kd6 {[%clk 0:00:14.1]} 45. Kc3 {[%clk 0:00:38.7]}
45... Nd4 {[%clk 0:00:10.2]} 46. Nc4+ {[%clk 0:00:38.6]} 46... Kd5 {[%clk
0:00:10.8]} 47. Nxa5 {[%clk 0:00:39.5]} 47... Ne2+ {[%clk 0:00:03.8]} 48. Kd3
{[%clk 0:00:35.3]} 48... Nc1+ {[%clk 0:00:03.3]} 49. Kd2 {[%clk 0:00:31.8]}
49... Na2 {[%clk 0:00:04]} 50. f3 {[%clk 0:00:27.3]} 50... c4 {[%clk 0:00:04.2]}
51. g4 {[%clk 0:00:24.9]} 51... fxg4 {[%clk 0:00:05.1]} 52. fxg4 {[%clk
0:00:25.7]} 52... c3+ {[%clk 0:00:03.1]} 53. Kd3 {[%clk 0:00:24.6]} 53... Nb4+
{[%clk 0:00:02.6]} 54. Kxc3 {[%clk 0:00:24.9]} 54... Na6 {[%clk 0:00:03.3]} 55.
Nb3 {[%clk 0:00:21.7]} 55... Ke4 {[%clk 0:00:03.2]} 56. Kc4 {[%clk 0:00:22.1]}
56... Kf4 {[%clk 0:00:03.6]} 57. Nc5 {[%clk 0:00:22.6]} 57... Nb8 {[%clk
0:00:03]} 58. Kb5 {[%clk 0:00:19.8]} 58... Kxg4 {[%clk 0:00:03.6]} 59. Kb6
{[%clk 0:00:18.7]} 59... Kf5 {[%clk 0:00:02.6]} 60. Kb7 {[%clk 0:00:19]} 60...
Na6 {[%clk 0:00:01.8]} 61. Kxa6 {[%clk 0:00:18.5]} 1-0

[Event "Late-Titled-Tuesday-Blitz-October-03-2023"]
[Site "Chess.com"]
[Date "2023.10.03"]
[Round "5"]
[White "Bodhanas"]
[Black "stasOR4ik"]
[Result "0-1"]
[WhiteElo "2140"]
[BlackElo "2428"]
[TimeControl "180+1"]
[EndTime "14:54:42 PDT"]
[Termination "stasOR4ik won by checkmate"]

1. d4 {[%clk 0:02:59.9]} 1... d5 {[%clk 0:03:00.2]} 2. Nf3 {[%clk 0:03:00]} 2...
Nf6 {[%clk 0:03:00.3]} 3. Bf4 {[%clk 0:03:00.1]} 3... c5 {[%clk 0:02:59.2]} 4.
e3 {[%clk 0:02:57.2]} 4... Nc6 {[%clk 0:02:58.3]} 5. c3 {[%clk 0:02:56.5]} 5...
e6 {[%clk 0:02:57.6]} 6. Be2 {[%clk 0:02:50.6]} 6... a6 {[%clk 0:02:55.2]} 7.
O-O {[%clk 0:02:47.7]} 7... Bd6 {[%clk 0:02:53.2]} 8. Bxd6 {[%clk 0:02:41.4]}
8... Qxd6 {[%clk 0:02:53.1]} 9. Nbd2 {[%clk 0:02:41.7]} 9... O-O {[%clk
0:02:50.9]} 10. Re1 {[%clk 0:02:41.1]} 10... e5 {[%clk 0:02:48.3]} 11. dxe5
{[%clk 0:02:40.2]} 11... Nxe5 {[%clk 0:02:47.2]} 12. Nxe5 {[%clk 0:02:39.9]}
12... Qxe5 {[%clk 0:02:47.5]} 13. Bf3 {[%clk 0:02:38.8]} 13... Rd8 {[%clk
0:02:37.4]} 14. Qe2 {[%clk 0:02:24.5]} 14... Bd7 {[%clk 0:02:26.3]} 15. e4
{[%clk 0:02:22]} 15... Bb5 {[%clk 0:02:24.6]} 16. c4 {[%clk 0:02:17.1]} 16...
dxc4 {[%clk 0:02:21.9]} 17. Nxc4 {[%clk 0:02:13.2]} 17... Bxc4 {[%clk
0:02:11.2]} 18. Qxc4 {[%clk 0:02:12.3]} 18... Rd2 {[%clk 0:02:10.9]} 19. Rac1
{[%clk 0:01:58.6]} 19... Rxb2 {[%clk 0:01:34.5]} 20. Qxc5 {[%clk 0:01:52.6]}
20... Qxc5 {[%clk 0:01:32.5]} 21. Rxc5 {[%clk 0:01:52.5]} 21... Kf8 {[%clk
0:01:21]} 22. e5 {[%clk 0:01:50.1]} 22... Ne8 {[%clk 0:01:17.3]} 23. e6 {[%clk
0:01:39.8]} 23... fxe6 {[%clk 0:01:16.9]} 24. h3 {[%clk 0:01:35.6]} 24... Ke7
{[%clk 0:01:01.6]} 25. Bg4 {[%clk 0:01:23.7]} 25... Rb6 {[%clk 0:00:56.5]} 26.
a4 {[%clk 0:01:17.5]} 26... Rd8 {[%clk 0:00:50.4]} 27. a5 {[%clk 0:01:16.6]}
27... Rbd6 {[%clk 0:00:49.4]} 28. Rb1 {[%clk 0:01:15.5]} 28... R8d7 {[%clk
0:00:44.4]} 29. Bf3 {[%clk 0:01:15.2]} 29... Rc7 {[%clk 0:00:19]} 30. Rxc7+
{[%clk 0:01:14.2]} 30... Nxc7 {[%clk 0:00:18.9]} 31. Rxb7 {[%clk 0:01:14.8]}
31... Kd7 {[%clk 0:00:19.4]} 32. Rb3 {[%clk 0:01:01.7]} 32... Rd4 {[%clk
0:00:18.9]} 33. Kf1 {[%clk 0:00:50.8]} 33... Ra4 {[%clk 0:00:16.7]} 34. Rd3+
{[%clk 0:00:50.6]} 34... Kc8 {[%clk 0:00:15.1]} 35. Rb3 {[%clk 0:00:37.1]} 35...
Rxa5 {[%clk 0:00:14.6]} 36. Bb7+ {[%clk 0:00:37.4]} 36... Kd7 {[%clk 0:00:14.6]}
37. Rd3+ {[%clk 0:00:37]} 37... Nd5 {[%clk 0:00:14.9]} 38. Ke2 {[%clk
0:00:33.5]} 38... Kc7 {[%clk 0:00:15.1]} 39. Bxd5 {[%clk 0:00:32.9]} 39... Rxd5
{[%clk 0:00:14.7]} 40. Rg3 {[%clk 0:00:32.8]} 40... g6 {[%clk 0:00:14.6]} 41.
Re3 {[%clk 0:00:30.4]} 41... Kd6 {[%clk 0:00:14.7]} 42. Ra3 {[%clk 0:00:30.2]}
42... a5 {[%clk 0:00:14.4]} 43. Ke3 {[%clk 0:00:29]} 43... Kc6 {[%clk
0:00:13.8]} 44. Rc3+ {[%clk 0:00:28.3]} 44... Kb5 {[%clk 0:00:14]} 45. Rc8
{[%clk 0:00:28.1]} 45... a4 {[%clk 0:00:13.8]} 46. Rb8+ {[%clk 0:00:28.2]} 46...
Kc4 {[%clk 0:00:14]} 47. Ke4 {[%clk 0:00:27.1]} 47... a3 {[%clk 0:00:13.3]} 48.
Ra8 {[%clk 0:00:26.7]} 48... Kb4 {[%clk 0:00:13.6]} 49. f4 {[%clk 0:00:25.5]}
49... Ra5 {[%clk 0:00:13.4]} 50. Rb8+ {[%clk 0:00:23.5]} 50... Rb5 {[%clk
0:00:10.4]} 51. Ra8 {[%clk 0:00:23.7]} 51... Kb3 {[%clk 0:00:10.7]} 52. g4
{[%clk 0:00:22.5]} 52... a2 {[%clk 0:00:10.6]} 53. h4 {[%clk 0:00:22.1]} 53...
Rb4+ {[%clk 0:00:10]} 54. Ke5 {[%clk 0:00:22.3]} 54... Ra4 {[%clk 0:00:09.9]}
55. Rxa4 {[%clk 0:00:22.1]} 55... Kxa4 {[%clk 0:00:09.9]} 56. Kxe6 {[%clk
0:00:22.8]} 56... a1=Q {[%clk 0:00:10.3]} 57. f5 {[%clk 0:00:23.3]} 57... gxf5
{[%clk 0:00:09.5]} 58. gxf5 {[%clk 0:00:23.6]} 58... Qh8 {[%clk 0:00:10.1]} 59.
f6 {[%clk 0:00:23.6]} 59... Qf8 {[%clk 0:00:10.4]} 60. f7 {[%clk 0:00:23.6]}
60... Kb5 {[%clk 0:00:10.7]} 61. Kf6 {[%clk 0:00:23.2]} 61... Kc5 {[%clk
0:00:10.8]} 62. Ke6 {[%clk 0:00:22.7]} 62... Kc6 {[%clk 0:00:11.1]} 63. h5
{[%clk 0:00:23.3]} 63... Kc7 {[%clk 0:00:10.6]} 64. Kf6 {[%clk 0:00:23.4]} 64...
Kd7 {[%clk 0:00:10]} 65. h6 {[%clk 0:00:23]} 65... Kd6 {[%clk 0:00:10]} 66. Kg5
{[%clk 0:00:22.3]} 66... Ke6 {[%clk 0:00:10.5]} 67. Kh5 {[%clk 0:00:21.9]} 67...
Qxf7+ {[%clk 0:00:11.1]} 68. Kh4 {[%clk 0:00:22.8]} 68... Qg6 {[%clk 0:00:11.4]}
69. Kh3 {[%clk 0:00:23]} 69... Kf5 {[%clk 0:00:12.3]} 70. Kh2 {[%clk 0:00:22.9]}
70... Kf4 {[%clk 0:00:13.2]} 71. Kh1 {[%clk 0:00:23.5]} 71... Kf3 {[%clk
0:00:13.8]} 72. Kh2 {[%clk 0:00:24.4]} 72... Qg2# {[%clk 0:00:14.2]} 0-1

[Event "Late-Titled-Tuesday-Blitz-October-03-2023"]
[Site "Chess.com"]
[Date "2023.10.03"]
[Round "5"]
[White "talaicito"]
[Black "wild3000"]
[Result "0-1"]
[WhiteElo "2180"]
[BlackElo "2413"]
[TimeControl "180+1"]
[EndTime "14:54:45 PDT"]
[Termination "wild3000 won on time"]

1. d4 {[%clk 0:03:00.9]} 1... Nf6 {[%clk 0:02:40.8]} 2. Nc3 {[%clk 0:03:01.1]}
2... d5 {[%clk 0:02:40]} 3. Bf4 {[%clk 0:03:01.7]} 3... c6 {[%clk 0:02:39.4]} 4.
e3 {[%clk 0:03:02.2]} 4... Bf5 {[%clk 0:02:38.1]} 5. Nf3 {[%clk 0:03:00.2]} 5...
e6 {[%clk 0:02:38.1]} 6. Ne5 {[%clk 0:03:00.8]} 6... Bb4 {[%clk 0:02:35.8]} 7.
g4 {[%clk 0:02:59.2]} 7... Bg6 {[%clk 0:02:32.9]} 8. f3 {[%clk 0:02:43.6]} 8...
Nbd7 {[%clk 0:02:23.1]} 9. h4 {[%clk 0:02:43]} 9... Qa5 {[%clk 0:01:48.4]} 10.
Qd2 {[%clk 0:02:38.9]} 10... h6 {[%clk 0:01:41.3]} 11. Nxg6 {[%clk 0:02:37.5]}
11... fxg6 {[%clk 0:01:41.3]} 12. Bd3 {[%clk 0:02:38.1]} 12... O-O-O {[%clk
0:01:27.7]} 13. Bxg6 {[%clk 0:02:34.5]} 13... Rhf8 {[%clk 0:01:25.7]} 14. a3
{[%clk 0:02:12.8]} 14... Nb6 {[%clk 0:01:23.1]} 15. O-O {[%clk 0:01:57.5]} 15...
Bxc3 {[%clk 0:01:23]} 16. Qxc3 {[%clk 0:01:52.9]} 16... Qxc3 {[%clk 0:01:22.9]}
17. bxc3 {[%clk 0:01:52.5]} 17... Nc4 {[%clk 0:01:21.9]} 18. a4 {[%clk
0:01:29.2]} 18... Nd7 {[%clk 0:01:15.4]} 19. Kg2 {[%clk 0:01:04.6]} 19... e5
{[%clk 0:01:10.3]} 20. dxe5 {[%clk 0:01:03.7]} 20... Ndxe5 {[%clk 0:01:06]} 21.
Bf5+ {[%clk 0:01:03.5]} 21... Rxf5 {[%clk 0:01:06.2]} 22. gxf5 {[%clk
0:01:00.8]} 22... Rf8 {[%clk 0:01:06.4]} 23. Bxe5 {[%clk 0:00:57.5]} 23... Nxe5
{[%clk 0:01:06.1]} 24. e4 {[%clk 0:00:57.6]} 24... Nc4 {[%clk 0:01:00.5]} 25.
Rae1 {[%clk 0:00:47.9]} 25... Kc7 {[%clk 0:00:55.2]} 26. Kg3 {[%clk 0:00:46.9]}
26... Kd6 {[%clk 0:00:53.4]} 27. Kf4 {[%clk 0:00:44.3]} 27... g6 {[%clk
0:00:43.1]} 28. e5+ {[%clk 0:00:32.7]} 28... Kd7 {[%clk 0:00:36.5]} 29. f6
{[%clk 0:00:32.6]} 29... Ke6 {[%clk 0:00:34.4]} 30. Rg1 {[%clk 0:00:31.9]} 30...
Kf7 {[%clk 0:00:34.2]} 31. h5 {[%clk 0:00:25.5]} 31... g5+ {[%clk 0:00:24.7]}
32. Kf5 {[%clk 0:00:25.4]} 32... Nd2 {[%clk 0:00:20.1]} 33. e6+ {[%clk
0:00:19.3]} 33... Ke8 {[%clk 0:00:20.3]} 34. f4 {[%clk 0:00:17.6]} 34... Ne4
{[%clk 0:00:18.9]} 35. fxg5 {[%clk 0:00:16.8]} 35... hxg5 {[%clk 0:00:19.8]} 36.
h6 {[%clk 0:00:16.6]} 36... Rxf6+ {[%clk 0:00:19.9]} 37. Ke5 {[%clk 0:00:16.8]}
37... Rxh6 {[%clk 0:00:19.9]} 38. c4 {[%clk 0:00:11.1]} 38... Ke7 {[%clk
0:00:15.7]} 39. cxd5 {[%clk 0:00:09.9]} 39... cxd5 {[%clk 0:00:16.6]} 40. Kxd5
{[%clk 0:00:09.8]} 40... Nf6+ {[%clk 0:00:11.1]} 41. Kc4 {[%clk 0:00:09.8]}
41... g4 {[%clk 0:00:11.2]} 42. Re3 {[%clk 0:00:08.7]} 42... Rg6 {[%clk
0:00:10.8]} 43. Kb3 {[%clk 0:00:08.1]} 43... Rg5 {[%clk 0:00:10.6]} 44. Rh1
{[%clk 0:00:08]} 44... g3 {[%clk 0:00:08.7]} 45. Rg1 {[%clk 0:00:07.7]} 45...
Nh5 {[%clk 0:00:07.9]} 46. Rd1 {[%clk 0:00:06.7]} 46... g2 {[%clk 0:00:05.4]}
47. Rd7+ {[%clk 0:00:06.4]} 47... Ke8 {[%clk 0:00:05]} 48. Re1 {[%clk
0:00:04.8]} 48... g1=Q {[%clk 0:00:04.1]} 49. Rxg1 {[%clk 0:00:05.2]} 49... Rxg1
{[%clk 0:00:05]} 50. Rxb7 {[%clk 0:00:05.2]} 50... Rg3+ {[%clk 0:00:05.2]} 51.
c3 {[%clk 0:00:04.8]} 51... a5 {[%clk 0:00:05.3]} 52. Rb5 {[%clk 0:00:04.5]}
52... Ng7 {[%clk 0:00:04.9]} 53. e7 {[%clk 0:00:03.5]} 53... Kxe7 {[%clk
0:00:04.7]} 54. Rxa5 {[%clk 0:00:03.3]} 54... Ne6 {[%clk 0:00:05.2]} 55. Ra7+
{[%clk 0:00:03.8]} 55... Kd6 {[%clk 0:00:05.3]} 56. Rb7 {[%clk 0:00:02.8]} 56...
Nc5+ {[%clk 0:00:05.3]} 0-1